Cogmind - Beta 13 @@@ ROGUE MODE // 2024.02.28 @ 20:21:17 Player: Dizzar Result: Destroyed by G-47 Trooper with Particle Gun Performance ------------- Evolutions (2) 1000 Regions Visited (6) 1200 Robots Destroyed (26) 130 Value Destroyed (1299) 1299 Prototype IDs (1) 20 Alien Tech Used (0) 0 Bonus (304) 304 TOTAL SCORE: 3953 Bonus ------- High Alert Combat Kills 59 Follower Combat Kills 45 Entered Garrisons 200 Cogmind --------- Core Integrity 0/550 Matter 214/300 Energy 265/265 System Corruption 3% Temperature Cool (9) Movement Treading (320) Ox2 Location -8/Garrison Parts ------- > --- POWER (1) -------- Improved Ion Engine > --- PROPULSION (2) --- Light Treads > --- UTILITY (6) ------ High-capacity Storage Unit Target Analyzer Target Analyzer Improved Light Armor Plating Improved Light Armor Plating > --- WEAPON (2) ------- Light Assault Rifle > --- INVENTORY (20) --- Aluminum Leg Heat Sink Shock Rifle Medium Laser Mining Claw Peak State ------------ > --- POWER ------------ Micro Nuclear Core > --- PROPULSION ------- Light Treads Light Treads > --- UTILITY ---------- Improved Heat Sink Improved Heat Sink High-capacity Storage Unit Target Analyzer Target Analyzer > --- WEAPON ----------- Beam Rifle Gauss Rifle > --- INVENTORY -------- Aluminum Leg Heat Sink Medium Laser Particle Gun Light Assault Rifle Heavy Assault Rifle Grenade Launcher Mining Claw [Rating: 26] Favorites ----------- Power Light Ion Engine Engine Light Ion Engine Power Core Light Nuclear Core Propulsion Aluminum Leg Treads Light Treads Leg Aluminum Leg Wheel Compact Wheel Utility High-capacity Storage Unit Device Heat Sink Storage High-capacity Storage Unit Processor Target Analyzer Protection Improved Light Armor Plating Weapon Light Assault Rifle Energy Gun Beam Rifle Ballistic Gun Light Assault Rifle Launcher Grenade Launcher Slashing Weapon Mining Claw Build | -11 -10 -10 -10 -9 -8 -8 ------- Run | Yrd Mat Min Exi Min Mat Gar Slots Evolved 4 | . . . . . 4 . Power . | . . . . . . . Propulsion . | . . . . . . . Utility 4 | . . . . . 4 . Weapon . | . . . . . . . Parts Attached 58 | . 3 . 3 1 9 42 Power 9 | . 1 . . . 1 7 Engine 6 | . 1 . . . 1 4 Core 3 | . . . . . . 3 Reactor . | . . . . . . . Propulsion 11 | . . . 2 . . 9 Treads 4 | . . . . . . 4 Leg 5 | . . . . . . 5 Wheel 2 | . . . 2 . . . Hover . | . . . . . . . Flight . | . . . . . . . Utility 12 | . 1 . 1 . 4 6 Device 6 | . 1 . . . 3 2 Storage 1 | . . . 1 . . . Processor 2 | . . . . . . 2 Hackware . | . . . . . . . Protection 3 | . . . . . 1 2 Artifact . | . . . . . . . Weapon 26 | . 1 . . 1 4 20 Energy Gun 4 | . . . . . . 4 Energy Cannon . | . . . . . . . Ballistic Gun 16 | . 1 . . 1 4 10 Ballistic Cannon . | . . . . . . . Launcher 2 | . . . . . . 2 Special Weapon . | . . . . . . . Impact Weapon . | . . . . . . . Slashing Weapon 4 | . . . . . . 4 Piercing Weapon . | . . . . . . . Special Melee Weapon . | . . . . . . . Unidentified Prototypes 1 | . . . . . 1 . Parts Lost 28 | . . . . . . 28 Power 6 | . . . . . . 6 Propulsion 7 | . . . . . . 7 Utility 7 | . . . . . . 7 Weapon 8 | . . . . . . 8 Highest Loss Streak 9 | . . . . . . 9 To Critical Strikes . | . . . . . . . Average Slot Usage (%) 81 | . 88 100 100 100 80 73 Engine 8 | . 14 14 14 14 9 4 Core 2 | . . . . . . 3 Treads 3 | . . . . . . 7 Leg 11 | . 28 28 25 . . 7 Wheel 5 | . . . 2 28 18 1 Device 12 | . 3 14 14 14 24 11 Storage 10 | . 14 14 14 14 9 9 Processor 3 | . . . . . . 6 Protection 3 | . . . . . 1 5 Energy Gun 3 | . 5 . . . . 4 Ballistic Gun 15 | . 22 28 28 28 18 9 Naked Turns . | . . . . . . . Heaviest Build 61 | 11 11 11 46 48 61 61 Greatest Support 40 | 20 20 20 26 26 35 40 Greatest Overweight (x) 5 | . . . 2 1 1 5 Average Overweight (x) . | . . . . 1 1 1 Largest Inventory Capacity 20 | . 8 8 20 20 20 20 Average Capacity 16 | . 8 8 10 20 20 20 Most Carried 14 | . 8 8 8 7 12 14 Average Carried 8 | . 6 7 7 6 8 8 Final Capacity 20 | 8 8 8 20 20 20 20 Final Carried 12 | 6 8 8 6 7 12 5 Class Distribution -------------------- 62% | Mutant 37% | Scavenger-Mutant Dominant Class ---------------- Mutant | -10/Materials Mutant | -10/Mines Mutant | -10/Exiles Mutant | -9/Mines Mutant | -8/Materials Scavenger-Mutant | -8/Garrison Resources | -11 -10 -10 -10 -9 -8 -8 ----------- Run | Yrd Mat Min Exi Min Mat Gar Matter Collected 1066 | 193 65 . . 32 102 674 Remotely . | . . . . . . . Salvage Created 1048 | . 140 . . . 102 806 Parts 58 | . 11 . . . 6 41 Haulers Intercepted . | . . . . . . . Recyclers Shooed . | . . . . . . . Parts Field Recycled . | . . . . . . . Retrieved Matter . | . . . . . . . Parts Self-Destructed . | . . . . . . . Prevented . | . . . . . . . Kills | -11 -10 -10 -10 -9 -8 -8 ------- Run | Yrd Mat Min Exi Min Mat Gar Combat Hostiles Destroyed 25 | . 5 . . . 2 18 Guns 20 | . 5 . . . 2 13 AOE 5 | . . . . . . 5 Classes Destroyed 6 | . 3 . . . 1 2 Operator 1 | . 1 . . . . . Swarmer 3 | . 3 . . . . . Grunt 13 | . 2 . . . . 11 Sentry 5 | . . . . . 2 3 Hunter 2 | . . . . . . 2 Programmer 2 | . . . . . . 2 Best Kill Streak 5 | . 2 . . . 1 5 Combat Bots Only 5 | . 2 . . . 1 5 Max Kills in Single Turn 1 | . 1 . . . 1 1 Gunslinging . | . . . . . . . Exploded 1 | . . . . . . 1 Melee . | . . . . . . . Uniques/NPCs Destroyed . | . . . . . . . Combat | -11 -10 -10 -10 -9 -8 -8 -------- Run | Yrd Mat Min Exi Min Mat Gar Hostile Shots Fired 286 | . 23 6 . . 10 247 Missed 68 | . 6 4 . . 2 56 Damage Taken 3230 | . 139 32 . . 112 2947 Core 614 | . 38 15 . . 12 549 Absorbed by Shields 120 | . . . . . . 120 Core Remaining (%) 89 | 100 . . . 78 . . Volleys Fired 97 | . 17 . . . 7 73 Largest 2 | . 2 . . . 2 2 Hottest 93 | . 60 . . . 48 93 Shots Fired 187 | . 34 . . . 14 139 Gun 178 | . 34 . . . 14 130 Cannon . | . . . . . . . Launcher 9 | . . . . . . 9 Special . | . . . . . . . Kinetic 136 | . 29 . . . 14 93 Thermal 37 | . . . . . . 37 Explosive 9 | . . . . . . 9 Electromagnetic 5 | . 5 . . . . . Robot Hit Streak 15 | . 4 . . . 6 15 Robot Miss Streak 3 | . 3 . . . 1 3 Penetration Max . | . . . . . . . Secondary Targets 1 | . . . . . . 1 Max Gunslinging Chain 1 | . . . . . . 1 Shots Hit Robots 127 | . 19 . . . 11 97 Core Hits 57 | . 11 . . . 5 41 Critical Kills 1 | . . . . . . 1 Critical Parts Destroyed 1 | . . . . . . 1 Critical Strikes 5 | . . . . . . 5 Burn 3 | . . . . . . 3 Destroy 2 | . . . . . . 2 Melee Attacks 16 | . . . . . . 16 Impact . | . . . . . . . Slashing 16 | . . . . . . 16 Piercing . | . . . . . . . Sneak Attacks . | . . . . . . . Combat Hostiles . | . . . . . . . Follow-up Attacks . | . . . . . . . Damage Inflicted 2298 | . 159 . . . 163 1976 Guns 1708 | . 154 . . . 163 1391 Cannons . | . . . . . . . Explosions 561 | . . . . . . 561 Melee 24 | . . . . . . 24 Ramming 5 | . 5 . . . . . Kinetic 1353 | . 131 . . . 163 1059 Thermal 332 | . . . . . . 332 Explosive 561 | . . . . . . 561 Electromagnetic 23 | . 23 . . . . . Impact . | . . . . . . . Slashing 24 | . . . . . . 24 Piercing . | . . . . . . . Highest Corruption 3 | . . . . . . 3 Average Corruption 2 | . . . . . . 2 Corruption Purged . | . . . . . . . Corruption Blocked . | . . . . . . . Effects 6 | . . . . . . 6 Message Errors 2 | . . . . . . 2 Energy Discharges 1 | . . . . . . 1 Data Loss (minor) 2 | . . . . . . 2 Misfires 1 | . . . . . . 1 Overload Shots . | . . . . . . . Overflow Damage 5 | . . . . . . 5 Projectiles . | . . . . . . . Explosions 5 | . . . . . . 5 Melee . | . . . . . . . Knockbacks . | . . . . . . . Impact . | . . . . . . . Kinetic . | . . . . . . . Secondary . | . . . . . . . Self-Inflicted Damage 123 | . . . . . . 123 Shots 8 | . . . . . . 8 Rammed . | . . . . . . . Targets Rammed 4 | . 4 . . . . . Kicked 4 | . 4 . . . . . Crushed . | . . . . . . . Highest Temperature 125 | . 20 . . . . 125 Average Temperature 27 | . 12 . . . . 30 Received Heat Transfer 951 | . 30 9 . . 27 885 Siege Activations . | . . . . . . . Robots Corrupted . | . . . . . . . Combat Hostiles . | . . . . . . . Parts Fried . | . . . . . . . Impact Corruptions . | . . . . . . . Robots Melted . | . . . . . . . Combat Hostiles . | . . . . . . . Parts Melted 3 | . . . . . . 3 Heat Transferred 997 | . . . . . . 997 Parts Sabotaged . | . . . . . . . Parts Stolen . | . . . . . . . Parts Stripped . | . . . . . . . Power Chain Reactions . | . . . . . . . Alert | -11 -10 -10 -10 -9 -8 -8 ------- Run | Yrd Mat Min Exi Min Mat Gar Peak Influence 644 | . 200 123 . . 108 644 Initial 78 | . . 78 . . . 70 Average 238 | . 110 92 . . 54 348 Maximum Alert Level 2 | . 1 . . . . 2 Low Security (%) 56 | . 95 100 . 100 100 28 Level 1 21 | . 4 . . . . 35 Level 2 21 | . . . . . . 36 Level 3 . | . . . . . . . Level 4 . | . . . . . . . Level 5 . | . . . . . . . High Security . | . . . . . . . Max Security . | . . . . . . . Squads Dispatched 2 | . 1 . . . 1 . Investigation . | . . . . . . . Extermination . | . . . . . . . Reinforcement 2 | . 1 . . . 1 . Assault . | . . . . . . . Garrison . | . . . . . . . Intercept . | . . . . . . . Searches Triggered . | . . . . . . . Construction Impeded . | . . . . . . . Haulers Reinforced . | . . . . . . . Active Scanning Responses . | . . . . . . . Cargo Convoy Interrupts . | . . . . . . . Stealth | -11 -10 -10 -10 -9 -8 -8 --------- Run | Yrd Mat Min Exi Min Mat Gar Distress Signals 3 | . 2 . . . 1 . Communications Jammed . | . . . . . . . Distress Signals . | . . . . . . . Times Spotted 56 | . 18 2 . . 5 31 Peak Tracking Total 6 | . 3 2 . . 3 6 Tactical Retreats 11 | . 2 1 . . . 8 Traps | -11 -10 -10 -10 -9 -8 -8 ------- Run | Yrd Mat Min Exi Min Mat Gar Traps Triggered 7 | . . . . . 1 6 Indirectly . | . . . . . . . Trap Hack Attempts . | . . . . . . . Triggered . | . . . . . . . Disarmed . | . . . . . . . Reprogrammed . | . . . . . . . Reused . | . . . . . . . Traps Extracted . | . . . . . . . Installed . | . . . . . . . Triggered . | . . . . . . . Machines | -11 -10 -10 -10 -9 -8 -8 ---------- Run | Yrd Mat Min Exi Min Mat Gar Machines Disabled 2 | . . . . . . 2 Max in Single Turn 1 | . . . . . . 1 Garrison Relay 1 | . . . . . . 1 Machines Repaired . | . . . . . . . Machines Dismantled . | . . . . . . . Machines Sabotaged . | . . . . . . . Overloaded Fab Kills . | . . . . . . . Hacking | -11 -10 -10 -10 -9 -8 -8 --------- Run | Yrd Mat Min Exi Min Mat Gar Machines Accessed 9 | . 2 . 1 . 3 3 Terminals 7 | . 2 . . . 2 3 Fabricators . | . . . . . . . Repair Stations . | . . . . . . . Recycling Units . | . . . . . . . Scanalyzers . | . . . . . . . Garrison Access 1 | . . . . . 1 . Total Hacks 22 | . 4 . 6 . 7 5 Successful 11 | . . . 6 . 3 2 Failed 11 | . 4 . . . 4 3 Catastrophic 6 | . 2 . . . 3 1 Database Lockouts . | . . . . . . . Manual 9 | . 4 . . . 5 . Terminals 15 | . 4 . . . 6 5 Fabricators . | . . . . . . . Repair Stations . | . . . . . . . Recycling Units . | . . . . . . . Scanalyzers . | . . . . . . . Garrison Access 1 | . . . . . 1 . Terminal Hacks 9 | . . . 6 . 1 2 Record 6 | . . . 6 . . . Open Door 1 | . . . . . . 1 Emergency Access Points 1 | . . . . . . 1 Recall Reinforcements 1 | . . . . . 1 . Fabricator Hacks . | . . . . . . . Repair Station Hacks . | . . . . . . . Recycling Unit Hacks . | . . . . . . . Scanalyzer . | . . . . . . . Garrison Access Hacks 1 | . . . . . 1 . Unlock Access 1 | . . . . . 1 . Unauthorized Hacks 1 | . . . . . 1 . Terminals 1 | . . . . . 1 . Botnet 1 | . . . . . 1 . Fabricators . | . . . . . . . Repair Stations . | . . . . . . . Recycling Units . | . . . . . . . Scanalyzers . | . . . . . . . Garrison Access . | . . . . . . . Data Cores Recovered . | . . . . . . . Used . | . . . . . . . Hacking Detections 6 | . 2 . . . 2 2 Full Trace Events . | . . . . . . . Feedback Events . | . . . . . . . Feedback Blocked . | . . . . . . . Robot Schematics Acquired . | . . . . . . . Robots Built . | . . . . . . . Authchips . | . . . . . . . Time . | . . . . . . . Total Robot Build Rating . | . . . . . . . Part Schematics Acquired . | . . . . . . . Parts Built . | . . . . . . . Authchips . | . . . . . . . Time . | . . . . . . . Total Part Build Rating . | . . . . . . . Parts Repaired . | . . . . . . . Time . | . . . . . . . Parts Recycled . | . . . . . . . Recycled Matter . | . . . . . . . Retrieved Matter . | . . . . . . . Retrieved Components . | . . . . . . . Parts Scanalyzed . | . . . . . . . Part Schematics Acquired . | . . . . . . . Parts Damaged . | . . . . . . . Bothacking | -11 -10 -10 -10 -9 -8 -8 ------------ Run | Yrd Mat Min Exi Min Mat Gar Used RIF Installer . | . . . . . . . Robots Hacked . | . . . . . . . Non-combat . | . . . . . . . Combat . | . . . . . . . Robot Hacks Applied . | . . . . . . . Relay Couplers Released 5 | . . . . . . 5 Machine Destruction 5 | . . . . . . 5 Fabnet Peak Effective % . | . . . . . . . Robots Rewired . | . . . . . . . Allies Hacked 1 | . . . . . . 1 Hacks Repelled . | . . . . . . . Allies | -11 -10 -10 -10 -9 -8 -8 -------- Run | Yrd Mat Min Exi Min Mat Gar Total Allies 1 | . . . . . . 1 Largest Group 1 | . . . . . . 1 Highest-Rated Group 25 | . . . . . . 25 Highest-Rated Ally 25 | . . . . . . 25 Total Orders . | . . . . . . . Ally Attacks 4 | . . . . . . 4 Total Damage 168 | . . . . . . 168 Kills 1 | . . . . . . 1 Allies Corrupted 1 | . . . . . . 1 Allies Melted . | . . . . . . . Intel | -11 -10 -10 -10 -9 -8 -8 ------- Run | Yrd Mat Min Exi Min Mat Gar Robot Analysis Total . | . . . . . . . Derelict Logs Recovered 3 | . . . . 3 . . Drone Launches . | . . . . . . . Drone Recoveries . | . . . . . . . Exploration | -11 -10 -10 -10 -9 -8 -8 ------------- Run | Yrd Mat Min Exi Min Mat Gar Turns Passed 2964 | . 395 152 265 200 325 1627 Spaces Moved 1530 | 1 212 126 201 190 208 592 Core 9 | . . . . . . 9 Treads 241 | . . . . . . 241 Legs 755 | 1 212 126 188 . . 228 Wheels 525 | . . . 13 190 208 114 Hover . | . . . . . . . Flight . | . . . . . . . Fastest Speed 105 | 120 120 120 105 105 105 105 Average Speed 153 | 120 120 120 129 105 105 213 Slowest Speed 470 | 120 120 120 260 105 105 470 Overloaded Moves . | . . . . . . . Propulsion Burnouts . | . . . . . . . Robots Hopped . | . . . . . . . Cave-ins Triggered . | . . . . . . . Exploration Rate (%) 41 | 2 44 38 59 43 22 79 Regions Visited 6 Branch Regions 3 Pre-discovered Areas 2 | . . 1 1 . . . Known Exits Taken 1 | . . . . . 1 . Unknown Exits Taken 5 | 1 1 1 1 1 . . Scrap Searched 1 | . . . . 1 . . Spaces Dug . | . . . . . . . Terrain Destroyed 27 | . . . . . . 27 Melee . | . . . . . . . Projectile . | . . . . . . . AOE 27 | . . . . . . 27 Terrain Rammed . | . . . . . . . Walls Destroyed . | . . . . . . . Machines Disabled . | . . . . . . . Actions | -11 -10 -10 -10 -9 -8 -8 --------- Run | Yrd Mat Min Exi Min Mat Gar Total 1935 | . 322 127 206 190 300 790 Wait 181 | . 85 . . . 74 22 Move 1521 | . 211 125 200 189 207 589 Hop . | . . . . . . . Pick Up 7 | . 1 1 . . 2 3 Fast Attach 23 | . 2 . . . 6 15 Attach 14 | . . . . . . 14 Detach 1 | . . . . . . 1 Swap 21 | . 1 . 3 1 3 13 Drop 10 | . 1 1 3 . 1 4 Fire 97 | . 17 . . . 7 73 Melee 16 | . . . . . . 16 Ram . | . . . . . . . Kick 4 | . 4 . . . . . Crush . | . . . . . . . Escape Stasis 40 | . . . . . . 40 Rewire . | . . . . . . . Trap . | . . . . . . . Miscellaneous . | . . . . . . . Route ------- -11/Scrapyard -10/Materials (discovered 3 exits: [*Mat] / [*Min x2]) -10/Mines -10/Exiles -9/Mines -8/Materials (discovered 4 exits: Fac x3 / Gar) -8/Garrison (discovered 3 exits: [*Mat x3]) History --------- Turn | Location | Event 1 | -11/Scrapyard | Discovered new exit (range 0) 1 | -11/Scrapyard | Entered Materials 17 | -10/Materials | Discovered new exit (range 13) 231 | -10/Materials | Discovered new exit (range 4) 300 | -10/Materials | Build established: Mutant 352 | -10/Materials | Discovered new exit (range 16) 396 | -10/Materials | Entered Mines 413 | -10/Mines | YI-UF0 nonchalantly dropped a Grenade Launcher on the ground 521 | -10/Mines | Learned location of Storage (-8) 542 | -10/Mines | Deemed a non-threat by the Exiles lab entrance 543 | -10/Mines | Discovered new exit (range 5) 548 | -10/Mines | Entered Exiles 577 | -10/Exiles | Met 8R-AWN 598 | -10/Exiles | Met EX-HEX 631 | -10/Exiles | Met EX-BIN 712 | -10/Exiles | Met EX-DEC 719 | -10/Exiles | Learned location of Zion (-6) 802 | -10/Exiles | Discovered new exit (range 14) 813 | -10/Exiles | Entered Mines 882 | -9/Mines | Learned 4 Materials zone layouts 891 | -9/Mines | Learned location of 1 exit from Materials 900 | -9/Mines | Learned location of 1 exit from Materials 906 | -9/Mines | Discovered new exit (range 16) 1013 | -9/Mines | Entered Materials 1013 | -8/Materials | Evolved 4 slots: Utility x4 1014 | -8/Materials | Identified exit to Factory 1336 | -8/Materials | Identified exit to Garrison 1338 | -8/Materials | Entered Garrison 1490 | -8/Garrison | Triggered checkpoint 1514 | -8/Garrison | Triggered checkpoint 1560 | -8/Garrison | Lost 5 parts (2n2u1w) 1731 | -8/Garrison | Lost 9 parts (3p1n3u2w) 1746 | -8/Garrison | Discovered new exit (range 12) 1855 | -8/Garrison | Core integrity fell below 50% 2141 | -8/Garrison | Build established: Scavenger-Mutant 2214 | -8/Garrison | Discovered new exit (range 12) 2324 | -8/Garrison | Rescued a captive Derelict 2446 | -8/Garrison | Triggered checkpoint 2518 | -8/Garrison | Lost 6 parts (1p1n1u3w) 2598 | -8/Garrison | Attempted to access garrison exit controls, blocked by remote lockdown 2786 | -8/Garrison | Attempted to access garrison exit controls, blocked by remote lockdown 2864 | -8/Garrison | Triggered checkpoint 2949 | -8/Garrison | Core integrity fell below 20% 2962 | -8/Garrison | Discovered new exit (range 15) 2965 | -8/Garrison | Destroyed by G-47 Trooper with Particle Gun Last Messages --------------- Gauss Rifle. 02732_ System corrupted: Gauss Rifle misfires. 02732_ Slug penetrates Wall. 02764_ K:>W8AZFZNTHG>1ID|05VREU 02781_ System corrupted: Energy discharge (-71). 02786_ Attempting to access garrison exit controls... 02786_ Remote lockdown engaged. 02864_ Beams of light sweep through the air. An alarm sounds. 02883_ DFO2LDW83EL D